[Event "Biel Master Tournament 2019"]
[Site "Biel"]
[Date "2019.07.22"]
[Round "1.14"]
[White "Vaibhav, Suri"]
[Black "Aizenberg, Benny"]
[Result "1-0"]
[ECO "A35"]
[WhiteElo "2591"]
[BlackElo "2195"]
[Annotator "ChessBase"]
[PlyCount "83"]
[EventDate "2019.07.20"]
[EventType "swiss"]
[EventCountry "SUI"]
[SourceTitle "playchess.com"]
[Source "ChessBase"]
[SourceQuality "1"]
[TimeControl "40/5400+30:1800+30"]

1. c4 {[%emt 0:00:00]} g6 {[%emt 0:00:00]} 2. Nc3 {[%emt 0:00:17]} c5 {[%emt 0:00:05]} 3. Nf3 {[%emt 0:00:13]} Nc6 {[%emt 0:00:32]} 4. e3 {[%emt 0:01:18]} d6 {[%emt 0:01:20]} 5. d4 {[%emt 0:00:00]} cxd4 {[%emt 0:00:25]} 6. exd4 {[%emt 0:00:00]} Bg4 {[%emt 0:00:41]} 7. Be2 {[%emt 0:10:58]} Bg7 {[%emt 0:02:33]} 8. O-O {[%emt 0:02:39]} Nf6 {[%emt 0:11:25]} 9. h3 {[%emt 0:05:29]} Bf5 {[%emt 0:02:59]} 10. d5 {[%emt 0:02:39]} Nb8 {[%emt 0:07:10]} 11. Nd4 {[%emt 0:01:44]} Bd7 {[%emt 0:01:52]} 12. Be3 {[%emt 0:04:54]} O-O {[%emt 0:03:58]} 13. Re1 {[%emt 0:06:22]} a5 {[%emt 0:05:44]} 14. b3 {[%emt 0:01:58]} Na6 {[%emt 0:03:21]} 15. Rb1 {[%emt 0:01:01]} Nc5 {[%emt 0:06:29]} 16. Bf3 {[%emt 0:00:40]} Ne8 {[%emt 0:06:48]} 17. Qd2 {[%emt 0:00:54]} Nc7 {[%emt 0:06:00]} 18. a3 {[%emt 0:04:05]} e5 {[%emt 0:10:16]} 19. dxe6 {[%emt 0:03:54]} fxe6 {[%emt 0:00:17]} 20. b4 {[%emt 0:04:19]} axb4 {[%emt 0:00:35]} 21. axb4 {[%emt 0:00:06]} Na4 {[%emt 0:00:23]} 22. Nxa4 {[%emt 0:12:10]} Rxa4 {[%emt 0:01:06]} 23. Bg5 {[%emt 0:06:16]} Qa8 {[%emt 0:11:51]} 24. Be7 {[%emt 0:00:33]} Ra2 {[%emt 0:05:04]} 25. Qe3 {[%emt 0:01:41]} Bxd4 {[%emt 0:06:11]} 26. Qxd4 {[%emt 0:00:06]} Rxf3 {[%emt 0:00:05]} 27. gxf3 {[%emt 0:00:15]} b5 {[%emt 0:01:50]} 28. Bxd6 {[%emt 0:03:07]} Qxf3 {[%emt 0:01:56]} 29. Qf4 {[%emt 0:00:26]} Qxf4 {[%emt 0:01:04]} 30. Bxf4 {[%emt 0:00:02]} Na6 {[%emt 0:00:08]} 31. Rbd1 {[%emt 0:02:08]} Bc6 {[%emt 0:00:20]} 32. Rxe6 {[%emt 0:00:25]} Nxb4 {[%emt 0:00:06]} 33. Rb1 {[%emt 0:08:56]} Nd3 {[%emt 0:02:00]} 34. Rxc6 {[%emt 0:01:24]} Nxf4 {[%emt 0:00:02]} 35. cxb5 {[%emt 0:00:05]} Nxh3+ {[%emt 0:00:09]} 36. Kg2 {[%emt 0:00:03]} Nxf2 {[%emt 0:00:08]} 37. b6 {[%emt 0:02:08]} Ne4+ {[%emt 0:00:06]} 38. Kg1 {[%emt 0:00:52]} Nd2 {[%emt 0:01:34]} 39. b7 {[%emt 0:00:23]} Nf3+ {[%emt 0:00:33]} 40. Kf1 {[%emt 0:00:01]} Nd2+ {[%emt 0:00:12]} 41. Ke1 {[%emt 0:30:13]} Nf3+ {[%emt 0:30:33]} 42. Kd1 {[%emt 0:00:02]} 1-0

[Event "Biel Master Tournament 2019"]
[Site "Biel"]
[Date "2019.07.22"]
[Round "1.15"]
[White "Cohen Revivo, Shoham"]
[Black "Sedlak, Nikola"]
[Result "1-0"]
[ECO "B12"]
[WhiteElo "2254"]
[BlackElo "2586"]
[Annotator "ChessBase"]
[PlyCount "99"]
[EventDate "2019.07.20"]
[EventType "swiss"]
[EventCountry "SUI"]
[SourceTitle "playchess.com"]
[Source "ChessBase"]
[SourceQuality "1"]
[TimeControl "40/5400+30:1800+30"]

1. e4 {[%emt 0:01:24]} c6 {[%emt 0:00:00]} 2. d4 {[%emt 0:00:14]} d5 {[%emt 0:00:09]} 3. e5 {[%emt 0:00:14]} c5 {[%emt 0:00:18]} 4. dxc5 {[%emt 0:00:14]} e6 {[%emt 0:00:23]} 5. Nf3 {[%emt 0:01:16]} Bxc5 {[%emt 0:00:21]} 6. Bd3 {[%emt 0:00:10]} Ne7 {[%emt 0:00:32]} 7. O-O {[%emt 0:00:12]} Ng6 {[%emt 0:01:11]} 8. Qe2 {[%emt 0:01:52]} Nc6 {[%emt 0:02:18]} 9. c3 {[%emt 0:00:17]} f6 {[%emt 0:04:03]} 10. exf6 {[%emt 0:03:39]} Qxf6 {[%emt 0:01:22]} 11. Bg5 {[%emt 0:01:53]} Qf7 {[%emt 0:02:29]} 12. c4 {[%emt 0:02:04]} O-O {[%emt 0:12:56]} 13. Nc3 {[%emt 0:00:22]} Kh8 {[%emt 0:11:18]} 14. Rad1 {[%emt 0:03:26]} b6 {[%emt 0:04:49]} 15. a3 {[%emt 0:06:03]} a5 {[%emt 0:09:48]} 16. Be3 {[%emt 0:12:43]} Nf4 {[%emt 0:03:11]} 17. Bxf4 {[%emt 0:00:20]} Qxf4 {[%emt 0:00:07]} 18. cxd5 {[%emt 0:00:30]} exd5 {[%emt 0:00:07]} 19. Nxd5 {[%emt 0:00:04]} Qh6 {[%emt 0:00:17]} 20. Qd2 {[%emt 0:08:10]} Bg4 {[%emt 0:15:48]} 21. Qxh6 {[%emt 0:00:07]} gxh6 {[%emt 0:00:06]} 22. Be4 {[%emt 0:00:06]} Rae8 {[%emt 0:03:29]} 23. Rfe1 {[%emt 0:00:09]} Ne5 {[%emt 0:24:01]} 24. b4 {[%emt 0:00:52]} axb4 {[%emt 0:00:06]} 25. axb4 {[%emt 0:00:02]} Bd6 {[%emt 0:00:09]} 26. h3 {[%emt 0:08:39]} Nxf3+ {[%emt 0:00:48]} 27. Bxf3 {[%emt 0:00:07]} Bxf3 {[%emt 0:01:49]} 28. gxf3 {[%emt 0:00:42]} b5 {[%emt 0:00:06]} 29. Rxe8 {[%emt 0:00:40]} Rxe8 {[%emt 0:00:07]} 30. Rd4 {[%emt 0:00:55]} Kg7 {[%emt 0:00:24]} 31. Kg2 {[%emt 0:02:57]} Rc8 {[%emt 0:00:42]} 32. f4 {[%emt 0:01:26]} Kf7 {[%emt 0:00:14]} 33. Kf3 {[%emt 0:00:13]} Bf8 {[%emt 0:00:15]} 34. f5 {[%emt 0:01:28]} Rc2 {[%emt 0:00:19]} 35. Ne3 {[%emt 0:06:12]} Rb2 {[%emt 0:00:47]} 36. Rd7+ {[%emt 0:00:17]} Ke8 {[%emt 0:00:26]} 37. Rxh7 {[%emt 0:00:28]} Bxb4 {[%emt 0:00:13]} 38. f6 {[%emt 0:02:01]} Bc5 {[%emt 0:01:27]} 39. Ng4 {[%emt 0:05:13]} Kd8 {[%emt 0:00:48]} 40. Ke4 {[%emt 0:01:11]} Rd2 {[%emt 0:01:32]} 41. Ne5 {[%emt 0:32:24]} Rd4+ {[%emt 0:06:54]} 42. Kf5 {[%emt 0:00:00]} Kc8 {[%emt 0:00:04]} 43. f7 {[%emt 0:00:00]} b4 {[%emt 0:06:12]} 44. Rxh6 {[%emt 0:00:00]} Kb7 {[%emt 0:00:15]} 45. Rc6 {[%emt 0:00:00]} Bf8 {[%emt 0:00:39]} 46. Rc2 {[%emt 0:00:00]} Rd5 {[%emt 0:00:49]} 47. f4 {[%emt 0:00:00]} b3 {[%emt 0:00:17]} 48. Rb2 {[%emt 0:00:00]} Rb5 {[%emt 0:00:05]} 49. Ke6 {[%emt 0:00:00]} Ba3 {[%emt 0:01:58]} 50. Nc4 {[%emt 0:00:00]} 1-0

[Event "Biel Master Tournament 2019"]
[Site "Biel"]
[Date "2019.07.22"]
[Round "1.16"]
[White "Antipov, Mikhail Al."]
[Black "Schweizer, Simon"]
[Result "1-0"]
[ECO "C95"]
[WhiteElo "2582"]
[BlackElo "2163"]
[Annotator "ChessBase"]
[PlyCount "81"]
[EventDate "2019.07.20"]
[EventType "swiss"]
[EventCountry "SUI"]
[SourceTitle "playchess.com"]
[Source "ChessBase"]
[SourceQuality "1"]
[TimeControl "40/5400+30:1800+30"]

1. e4 {[%emt 0:00:00]} e5 {[%emt 0:01:09]} 2. Nf3 {[%emt 0:00:00]} Nc6 {[%emt 0:00:07]} 3. Bb5 {[%emt 0:00:00]} a6 {[%emt 0:00:09]} 4. Ba4 {[%emt 0:00:00]} Nf6 {[%emt 0:00:15]} 5. O-O {[%emt 0:00:00]} Be7 {[%emt 0:00:11]} 6. Re1 {[%emt 0:00:04]} b5 {[%emt 0:00:07]} 7. Bb3 {[%emt 0:00:04]} d6 {[%emt 0:00:14]} 8. c3 {[%emt 0:00:07]} O-O {[%emt 0:00:25]} 9. h3 {[%emt 0:00:06]} Nb8 {[%emt 0:01:09]} 10. d4 {[%emt 0:00:08]} Nbd7 {[%emt 0:00:11]} 11. Nbd2 {[%emt 0:00:09]} Bb7 {[%emt 0:00:17]} 12. c4 {[%emt 0:02:45]} h6 {[%emt 0:06:32]} 13. Qe2 {[%emt 0:10:53]} c6 {[%emt 0:05:12]} 14. a4 {[%emt 0:01:34]} bxa4 {[%emt 0:08:09]} 15. Bxa4 {[%emt 0:00:21]} c5 {[%emt 0:00:28]} 16. d5 {[%emt 0:07:18]} Nb6 {[%emt 0:06:04]} 17. Bc2 {[%emt 0:00:06]} a5 {[%emt 0:00:13]} 18. Nb1 {[%emt 0:00:34]} Ba6 {[%emt 0:03:34]} 19. Nfd2 {[%emt 0:00:37]} Bc8 {[%emt 0:00:28]} 20. Nf1 {[%emt 0:02:17]} Re8 {[%emt 0:01:18]} 21. Bd2 {[%emt 0:01:49]} a4 {[%emt 0:02:08]} 22. Nc3 {[%emt 0:00:14]} Bd7 {[%emt 0:00:43]} 23. Ne3 {[%emt 0:00:08]} Bf8 {[%emt 0:00:36]} 24. Ra3 {[%emt 0:03:37]} g6 {[%emt 0:00:46]} 25. Rea1 {[%emt 0:00:05]} Bg7 {[%emt 0:04:28]} 26. Kh2 {[%emt 0:00:48]} Qe7 {[%emt 0:03:07]} 27. Ned1 {[%emt 0:00:54]} Nh5 {[%emt 0:03:11]} 28. Nxa4 {[%emt 0:02:25]} Nxa4 {[%emt 0:00:17]} 29. Bxa4 {[%emt 0:00:09]} Bxa4 {[%emt 0:00:29]} 30. Rxa4 {[%emt 0:00:05]} Rxa4 {[%emt 0:00:17]} 31. Rxa4 {[%emt 0:00:04]} Nf4 {[%emt 0:00:10]} 32. Qf3 {[%emt 0:00:30]} Qd7 {[%emt 0:00:57]} 33. Qa3 {[%emt 0:02:02]} Rb8 {[%emt 0:00:58]} 34. Nc3 {[%emt 0:14:09]} Bf8 {[%emt 0:05:46]} 35. Nb5 {[%emt 0:00:44]} Qd8 {[%emt 0:02:16]} 36. Ra7 {[%emt 0:01:00]} Qh4 {[%emt 0:00:12]} 37. Qf3 {[%emt 0:03:30]} h5 {[%emt 0:05:32]} 38. Ra3 {[%emt 0:06:29]} g5 {[%emt 0:01:41]} 39. Bxf4 {[%emt 0:00:14]} Qxf4+ {[%emt 0:00:45]} 40. g3 {[%emt 0:00:12]} Qc1 {[%emt 0:01:50]} 41. Ra7 {[%emt 0:30:08]} 1-0

[Event "Biel Master Tournament 2019"]
[Site "Biel"]
[Date "2019.07.22"]
[Round "1.17"]
[White "Zulfic, Fedja"]
[Black "Lalith Babu M R"]
[Result "0-1"]
[ECO "A47"]
[WhiteElo "2160"]
[BlackElo "2580"]
[Annotator "ChessBase"]
[PlyCount "66"]
[EventDate "2019.07.20"]
[EventType "swiss"]
[EventCountry "SUI"]
[SourceTitle "playchess.com"]
[Source "ChessBase"]
[SourceQuality "1"]
[TimeControl "40/5400+30:1800+30"]

1. d4 {[%emt 0:00:44]} Nf6 {[%emt 0:00:00]} 2. Nf3 {[%emt 0:00:10]} e6 {[%emt 0:00:16]} 3. Bf4 {[%emt 0:00:36]} c5 {[%emt 0:00:43]} 4. e3 {[%emt 0:02:51]} b6 {[%emt 0:01:51]} 5. Nbd2 {[%emt 0:00:57]} Bb7 {[%emt 0:00:08]} 6. Nc4 {[%emt 0:02:12]} cxd4 {[%emt 0:06:58]} 7. exd4 {[%emt 0:00:59]} b5 {[%emt 0:07:05]} 8. Nd6+ {[%emt 0:20:56]} Bxd6 {[%emt 0:00:11]} 9. Bxd6 {[%emt 0:00:03]} Ne4 {[%emt 0:00:28]} 10. Bf4 {[%emt 0:13:37]} Qa5+ {[%emt 0:01:21]} 11. Bd2 {[%emt 0:01:21]} Nxd2 {[%emt 0:01:12]} 12. Qxd2 {[%emt 0:00:15]} Qxd2+ {[%emt 0:00:04]} 13. Nxd2 {[%emt 0:00:06]} Nc6 {[%emt 0:00:17]} 14. Nb3 {[%emt 0:06:15]} a6 {[%emt 0:01:23]} 15. a3 {[%emt 0:19:15]} Ne7 {[%emt 0:05:10]} 16. f3 {[%emt 0:04:41]} Nd5 {[%emt 0:00:20]} 17. Kf2 {[%emt 0:01:49]} Ke7 {[%emt 0:01:09]} 18. c3 {[%emt 0:01:04]} Nb6 {[%emt 0:00:38]} 19. Nc5 {[%emt 0:08:34]} Bd5 {[%emt 0:01:01]} 20. Bd3 {[%emt 0:03:47]} d6 {[%emt 0:02:11]} 21. Ne4 {[%emt 0:00:07]} Bc4 {[%emt 0:00:04]} 22. Bc2 {[%emt 0:04:42]} Rab8 {[%emt 0:00:29]} 23. Rhb1 {[%emt 0:00:55]} Rhc8 {[%emt 0:00:26]} 24. a4 {[%emt 0:02:43]} bxa4 {[%emt 0:01:05]} 25. Bxa4 {[%emt 0:00:04]} Nxa4 {[%emt 0:00:14]} 26. Rxa4 {[%emt 0:00:06]} Bd3 {[%emt 0:00:03]} 27. Raa1 {[%emt 0:01:09]} Bxb1 {[%emt 0:00:26]} 28. Rxb1 {[%emt 0:00:01]} Rb6 {[%emt 0:00:06]} 29. Nd2 {[%emt 0:00:46]} Rcb8 {[%emt 0:01:23]} 30. b3 {[%emt 0:00:25]} Rc8 {[%emt 0:00:29]} 31. Rc1 {[%emt 0:01:24]} a5 {[%emt 0:00:21]} 32. Ke2 {[%emt 0:00:31]} a4 {[%emt 0:00:24]} 33. b4 {[%emt 0:00:12]} Rxb4 {[%emt 0:00:11]} 0-1

[Event "Biel Master Tournament 2019"]
[Site "Biel"]
[Date "2019.07.22"]
[Round "1.18"]
[White "Moussard, Jules"]
[Black "Giacomini, Hector"]
[Result "1-0"]
[ECO "B18"]
[WhiteElo "2576"]
[BlackElo "2156"]
[Annotator "ChessBase"]
[PlyCount "103"]
[EventDate "2019.07.20"]
[EventType "swiss"]
[EventCountry "SUI"]
[SourceTitle "playchess.com"]
[Source "ChessBase"]
[SourceQuality "1"]
[TimeControl "40/5400+30:1800+30"]

1. e4 {[%emt 0:09:10]} c6 {[%emt 0:00:00]} 2. Nc3 {[%emt 0:01:23]} d5 {[%emt 0:00:00]} 3. d4 {[%emt 0:00:32]} dxe4 {[%emt 0:00:01]} 4. Nxe4 {[%emt 0:00:06]} Bf5 {[%emt 0:00:15]} 5. Qf3 {[%emt 0:02:04]} e6 {[%emt 0:01:23]} 6. c3 {[%emt 0:03:02]} Nf6 {[%emt 0:01:43]} 7. Ng3 {[%emt 0:01:16]} Bg6 {[%emt 0:00:49]} 8. N1e2 {[%emt 0:00:29]} Qd5 {[%emt 0:07:27]} 9. Qe3 {[%emt 0:07:02]} Bd6 {[%emt 0:14:30]} 10. Nf4 {[%emt 0:01:49]} Bxf4 {[%emt 0:06:18]} 11. Qxf4 {[%emt 0:03:45]} O-O {[%emt 0:01:39]} 12. c4 {[%emt 0:00:57]} Qd8 {[%emt 0:02:21]} 13. Be2 {[%emt 0:00:43]} Nbd7 {[%emt 0:00:19]} 14. O-O {[%emt 0:00:52]} Re8 {[%emt 0:00:52]} 15. b3 {[%emt 0:00:57]} a5 {[%emt 0:04:32]} 16. Ba3 {[%emt 0:05:24]} a4 {[%emt 0:02:17]} 17. Bd6 {[%emt 0:00:49]} Nf8 {[%emt 0:11:15]} 18. Bc7 {[%emt 0:08:04]} Qc8 {[%emt 0:01:24]} 19. b4 {[%emt 0:03:05]} b5 {[%emt 0:14:22]} 20. Be5 {[%emt 0:01:05]} N8d7 {[%emt 0:12:47]} 21. cxb5 {[%emt 0:00:53]} Nd5 {[%emt 0:00:32]} 22. Qd2 {[%emt 0:00:41]} Nxe5 {[%emt 0:03:45]} 23. dxe5 {[%emt 0:00:08]} cxb5 {[%emt 0:00:47]} 24. Bxb5 {[%emt 0:00:15]} Rd8 {[%emt 0:00:25]} 25. Be2 {[%emt 0:07:02]} Qb8 {[%emt 0:00:33]} 26. a3 {[%emt 0:01:00]} Qxe5 {[%emt 0:00:11]} 27. Rfd1 {[%emt 0:01:59]} h6 {[%emt 0:03:04]} 28. Rac1 {[%emt 0:00:32]} Nf4 {[%emt 0:02:13]} 29. Qe3 {[%emt 0:08:22]} Nxe2+ {[%emt 0:02:13]} 30. Nxe2 {[%emt 0:02:08]} Qb2 {[%emt 0:01:07]} 31. h3 {[%emt 0:02:12]} Rac8 {[%emt 0:01:01]} 32. Rxd8+ {[%emt 0:01:57]} Rxd8 {[%emt 0:00:05]} 33. Nf4 {[%emt 0:01:37]} Bc2 {[%emt 0:03:00]} 34. Kh2 {[%emt 0:00:46]} Bb3 {[%emt 0:00:22]} 35. Rc7 {[%emt 0:00:38]} Qf6 {[%emt 0:02:01]} 36. Nd3 {[%emt 0:00:47]} Qd4 {[%emt 0:01:02]} 37. Qxd4 {[%emt 0:00:44]} Rxd4 {[%emt 0:00:05]} 38. Nc5 {[%emt 0:00:02]} Rd2 {[%emt 0:01:26]} 39. f3 {[%emt 0:17:30]} Ra2 {[%emt 0:00:09]} 40. b5 {[%emt 0:00:55]} Bd5 {[%emt 0:00:53]} 41. Kg3 {[%emt 0:32:40]} Rb2 {[%emt 0:09:46]} 42. Rc8+ {[%emt 0:00:00]} Kh7 {[%emt 0:00:05]} 43. Rb8 {[%emt 0:00:00]} g5 {[%emt 0:07:46]} 44. b6 {[%emt 0:00:00]} f5 {[%emt 0:02:24]} 45. h4 {[%emt 0:00:00]} f4+ {[%emt 0:02:10]} 46. Kh3 {[%emt 0:00:00]} e5 {[%emt 0:06:42]} 47. Rd8 {[%emt 0:00:00]} g4+ {[%emt 0:01:23]} 48. Kxg4 {[%emt 0:00:00]} Rxg2+ {[%emt 0:00:11]} 49. Kf5 {[%emt 0:00:00]} Bxf3 {[%emt 0:00:30]} 50. Rd7+ {[%emt 0:00:00]} Kh8 {[%emt 0:01:16]} 51. Kxe5 {[%emt 0:00:00]} Bc6 {[%emt 0:01:20]} 52. Rc7 {[%emt 0:00:00]} 1-0

[Event "Biel Master Tournament 2019"]
[Site "Biel"]
[Date "2019.07.22"]
[Round "1.19"]
[White "Damianou, Ioannis"]
[Black "Brkic, Ante"]
[Result "0-1"]
[ECO "B81"]
[WhiteElo "2154"]
[BlackElo "2573"]
[Annotator "ChessBase"]
[PlyCount "154"]
[EventDate "2019.07.20"]
[EventType "swiss"]
[EventCountry "SUI"]
[SourceTitle "playchess.com"]
[Source "ChessBase"]
[SourceQuality "1"]
[TimeControl "40/5400+30:1800+30"]

1. e4 {[%emt 0:00:00]} c5 {[%emt 0:00:51]} 2. Nf3 {[%emt 0:00:00]} d6 {[%emt 0:00:09]} 3. d4 {[%emt 0:00:12]} cxd4 {[%emt 0:00:06]} 4. Nxd4 {[%emt 0:00:04]} Nf6 {[%emt 0:00:04]} 5. Nc3 {[%emt 0:00:05]} a6 {[%emt 0:00:30]} 6. h3 {[%emt 0:01:23]} e6 {[%emt 0:02:19]} 7. g4 {[%emt 0:00:57]} h6 {[%emt 0:00:12]} 8. Bg2 {[%emt 0:02:26]} Be7 {[%emt 0:00:14]} 9. Be3 {[%emt 0:00:41]} Nc6 {[%emt 0:00:22]} 10. Qd2 {[%emt 0:04:04]} Nxd4 {[%emt 0:03:21]} 11. Qxd4 {[%emt 0:04:04]} e5 {[%emt 0:00:07]} 12. Qd2 {[%emt 0:04:54]} b5 {[%emt 0:03:32]} 13. a3 {[%emt 0:11:11]} Be6 {[%emt 0:05:29]} 14. O-O-O {[%emt 0:04:38]} Nd7 {[%emt 0:10:07]} 15. f4 {[%emt 0:18:16]} exf4 {[%emt 0:11:29]} 16. Bxf4 {[%emt 0:00:07]} Ne5 {[%emt 0:00:20]} 17. Nd5 {[%emt 0:13:51]} Nc4 {[%emt 0:11:54]} 18. Qd4 {[%emt 0:05:08]} Bxd5 {[%emt 0:02:40]} 19. Qxd5 {[%emt 0:00:19]} Rc8 {[%emt 0:04:16]} 20. e5 {[%emt 0:06:45]} dxe5 {[%emt 0:16:26]} 21. Bxe5 {[%emt 0:05:07]} Qxd5 {[%emt 0:00:25]} 22. Rxd5 {[%emt 0:00:06]} O-O {[%emt 0:08:00]} 23. Kb1 {[%emt 0:07:13]} Rfe8 {[%emt 0:03:30]} 24. Bd4 {[%emt 0:03:10]} Bh4 {[%emt 0:03:58]} 25. Rd7 {[%emt 0:00:53]} Red8 {[%emt 0:07:18]} 26. Rxd8+ {[%emt 0:00:24]} Rxd8 {[%emt 0:00:03]} 27. Bc3 {[%emt 0:01:59]} Rd6 {[%emt 0:00:29]} 28. b3 {[%emt 0:02:06]} Ne3 {[%emt 0:01:38]} 29. Be4 {[%emt 0:00:16]} Nd1 {[%emt 0:00:52]} 30. Bb4 {[%emt 0:01:20]} Rd7 {[%emt 0:02:02]} 31. Bf3 {[%emt 0:00:55]} Ne3 {[%emt 0:01:10]} 32. Rh2 {[%emt 0:00:36]} Nf1 {[%emt 0:01:08]} 33. Rg2 {[%emt 0:01:12]} Bg5 {[%emt 0:00:26]} 34. Rf2 {[%emt 0:00:27]} Nd2+ {[%emt 0:00:33]} 35. Bxd2 {[%emt 0:00:29]} Bxd2 {[%emt 0:00:03]} 36. Kb2 {[%emt 0:01:38]} Bg5 {[%emt 0:00:38]} 37. c4 {[%emt 0:00:40]} bxc4 {[%emt 0:01:01]} 38. bxc4 {[%emt 0:00:05]} Rd3 {[%emt 0:00:08]} 39. a4 {[%emt 0:01:09]} Bf6+ {[%emt 0:01:05]} 40. Ka2 {[%emt 0:00:39]} Rc3 {[%emt 0:00:20]} 41. Bd5 {[%emt 0:02:11]} Rxh3 {[%emt 0:02:13]} 42. Rc2 {[%emt 0:04:17]} Rd3 {[%emt 0:02:50]} 43. Bb7 {[%emt 0:01:42]} a5 {[%emt 0:01:09]} 44. Bd5 {[%emt 0:04:40]} Kf8 {[%emt 0:02:06]} 45. Re2 {[%emt 0:00:49]} Rd4 {[%emt 0:02:32]} 46. Re4 {[%emt 0:01:31]} Rd3 {[%emt 0:04:23]} 47. Kb1 {[%emt 0:02:59]} g6 {[%emt 0:05:04]} 48. Kc2 {[%emt 0:00:15]} Ra3 {[%emt 0:00:10]} 49. Bc6 {[%emt 0:00:07]} Be7 {[%emt 0:03:54]} 50. Kd2 {[%emt 0:01:52]} Bc5 {[%emt 0:01:37]} 51. Ke2 {[%emt 0:02:14]} Kg7 {[%emt 0:00:01]} 52. Re5 {[%emt 0:00:32]} Bb4 {[%emt 0:00:21]} 53. Bb5 {[%emt 0:00:52]} Kf6 {[%emt 0:00:49]} 54. Rd5 {[%emt 0:00:41]} Rc3 {[%emt 0:00:45]} 55. Kf2 {[%emt 0:00:29]} Ke6 {[%emt 0:00:19]} 56. Bd7+ {[%emt 0:00:20]} Ke7 {[%emt 0:00:18]} 57. Bb5 {[%emt 0:00:07]} Bd6 {[%emt 0:00:48]} 58. Ba6 {[%emt 0:01:45]} Bb4 {[%emt 0:00:37]} 59. Bb5 {[%emt 0:00:06]} f5 {[%emt 0:05:27]} 60. gxf5 {[%emt 0:00:43]} g5 {[%emt 0:00:01]} 61. Re5+ {[%emt 0:02:10]} Kf6 {[%emt 0:00:02]} 62. Re6+ {[%emt 0:00:11]} Kxf5 {[%emt 0:00:03]} 63. Rxh6 {[%emt 0:00:23]} g4 {[%emt 0:00:03]} 64. Bd7+ {[%emt 0:03:37]} Kg5 {[%emt 0:00:09]} 65. Rc6 {[%emt 0:00:06]} Rc2+ {[%emt 0:01:00]} 66. Kf1 {[%emt 0:01:19]} g3 {[%emt 0:02:34]} 67. Rc8 {[%emt 0:01:51]} g2+ {[%emt 0:02:41]} 68. Kg1 {[%emt 0:00:06]} Kf4 {[%emt 0:00:15]} 69. Be6 {[%emt 0:01:52]} Bc3 {[%emt 0:00:56]} 70. Rd8 {[%emt 0:03:44]} Ke5 {[%emt 0:00:11]} 71. Bh3 {[%emt 0:00:35]} Bd4+ {[%emt 0:00:14]} 72. Rxd4 {[%emt 0:00:06]} Kxd4 {[%emt 0:00:04]} 73. Bxg2 {[%emt 0:00:07]} Rxc4 {[%emt 0:00:10]} 74. Kf2 {[%emt 0:01:14]} Rxa4 {[%emt 0:00:05]} 75. Bc6 {[%emt 0:00:08]} Ra2+ {[%emt 0:00:13]} 76. Ke1 {[%emt 0:00:04]} a4 {[%emt 0:00:11]} 77. Kd1 {[%emt 0:00:28]} Ke5 {[%emt 0:00:32]} 0-1

[Event "Biel Master Tournament 2019"]
[Site "Biel"]
[Date "2019.07.22"]
[Round "1.20"]
[White "Santos Ruiz, Miguel"]
[Black "Ferster, Fabian"]
[Result "1-0"]
[ECO "D07"]
[WhiteElo "2567"]
[BlackElo "2150"]
[Annotator "ChessBase"]
[PlyCount "65"]
[EventDate "2019.07.20"]
[EventType "swiss"]
[EventCountry "SUI"]
[SourceTitle "playchess.com"]
[Source "ChessBase"]
[SourceQuality "1"]
[TimeControl "40/5400+30:1800+30"]

1. d4 {[%emt 0:03:42]} d5 {[%emt 0:00:00]} 2. c4 {[%emt 0:00:04]} Nc6 {[%emt 0:00:00]} 3. cxd5 {[%emt 0:00:25]} Qxd5 {[%emt 0:00:00]} 4. e3 {[%emt 0:00:04]} e5 {[%emt 0:00:09]} 5. Nc3 {[%emt 0:00:07]} Bb4 {[%emt 0:00:06]} 6. Bd2 {[%emt 0:00:34]} Bxc3 {[%emt 0:00:05]} 7. bxc3 {[%emt 0:00:02]} Nf6 {[%emt 0:00:10]} 8. c4 {[%emt 0:00:18]} Qd6 {[%emt 0:00:05]} 9. d5 {[%emt 0:00:03]} Nb8 {[%emt 0:00:20]} 10. Qb1 {[%emt 0:08:13]} Na6 {[%emt 0:00:15]} 11. Ne2 {[%emt 0:01:20]} O-O {[%emt 0:03:37]} 12. Nc3 {[%emt 0:05:53]} c6 {[%emt 0:11:16]} 13. e4 {[%emt 0:01:33]} Nc5 {[%emt 0:10:25]} 14. Be2 {[%emt 0:09:53]} Rb8 {[%emt 0:12:08]} 15. O-O {[%emt 0:08:03]} b5 {[%emt 0:08:29]} 16. cxb5 {[%emt 0:01:46]} cxd5 {[%emt 0:00:10]} 17. exd5 {[%emt 0:00:15]} Nxd5 {[%emt 0:00:32]} 18. Nxd5 {[%emt 0:03:46]} Qxd5 {[%emt 0:00:09]} 19. Rd1 {[%emt 0:00:05]} Bb7 {[%emt 0:04:41]} 20. Bf1 {[%emt 0:01:46]} Rfc8 {[%emt 0:03:43]} 21. Be3 {[%emt 0:04:57]} Qe6 {[%emt 0:00:28]} 22. Qb4 {[%emt 0:15:20]} Ne4 {[%emt 0:03:05]} 23. Rac1 {[%emt 0:03:00]} Ra8 {[%emt 0:11:22]} 24. Rxc8+ {[%emt 0:02:07]} Rxc8 {[%emt 0:01:04]} 25. Qa5 {[%emt 0:01:05]} Qe7 {[%emt 0:17:19]} 26. Qxa7 {[%emt 0:00:06]} Nc3 {[%emt 0:02:02]} 27. Bc5 {[%emt 0:11:00]} Rxc5 {[%emt 0:01:03]} 28. Qxb7 {[%emt 0:00:04]} Qe8 {[%emt 0:02:34]} 29. Rd2 {[%emt 0:04:25]} g6 {[%emt 0:01:04]} 30. b6 {[%emt 0:01:09]} Na4 {[%emt 0:06:40]} 31. Qa7 {[%emt 0:02:10]} Rc1 {[%emt 0:01:46]} 32. b7 {[%emt 0:00:11]} Rb1 {[%emt 0:00:05]} 33. Qa8 {[%emt 0:00:24]} 1-0

[Event "Biel Master Tournament 2019"]
[Site "Biel"]
[Date "2019.07.23"]
[Round "2.2"]
[White "Vasanthan Perumal, Vishnu Prasanna"]
[Black "Nabaty, Tamir"]
[Result "0-1"]
[ECO "C70"]
[WhiteElo "2503"]
[BlackElo "2678"]
[Annotator "ChessBase"]
[PlyCount "48"]
[EventDate "2019.07.20"]
[EventType "swiss"]
[EventCountry "SUI"]
[SourceTitle "playchess.com"]
[Source "ChessBase"]
[SourceQuality "1"]
[TimeControl "40/5400+30:1800+30"]

1. e4 {[%emt 0:00:00]} e5 {[%emt 0:03:25]} 2. Nf3 {[%emt 0:00:00]} Nc6 {[%emt 0:00:06]} 3. Bb5 {[%emt 0:00:00]} a6 {[%emt 0:00:06]} 4. Ba4 {[%emt 0:00:00]} Bc5 {[%emt 0:00:05]} 5. O-O {[%emt 0:02:28]} d6 {[%emt 0:00:17]} 6. d4 {[%emt 0:05:25]} exd4 {[%emt 0:00:22]} 7. Nxd4 {[%emt 0:01:37]} Nge7 {[%emt 0:01:02]} 8. c3 {[%emt 0:04:22]} O-O {[%emt 0:08:41]} 9. Bg5 {[%emt 0:01:33]} Ne5 {[%emt 0:01:50]} 10. Nd2 {[%emt 0:06:47]} h6 {[%emt 0:06:30]} 11. Bh4 {[%emt 0:03:02]} N5g6 {[%emt 0:03:31]} 12. Bg3 {[%emt 0:00:38]} f5 {[%emt 0:01:14]} 13. exf5 {[%emt 0:06:27]} Nxf5 {[%emt 0:01:32]} 14. Qe2 {[%emt 0:07:14]} Bxd4 {[%emt 0:05:14]} 15. cxd4 {[%emt 0:00:29]} Nxd4 {[%emt 0:01:11]} 16. Qc4+ {[%emt 0:05:36]} Ne6 {[%emt 0:00:03]} 17. Bb3 {[%emt 0:14:58]} Kh8 {[%emt 0:01:41]} 18. f4 {[%emt 0:14:13]} Nh4 {[%emt 0:13:16]} 19. Rae1 {[%emt 0:07:53]} Nc5 {[%emt 0:00:56]} 20. Bxh4 {[%emt 0:02:37]} Qxh4 {[%emt 0:00:09]} 21. Bc2 {[%emt 0:00:05]} Bd7 {[%emt 0:02:19]} 22. a4 {[%emt 0:06:09]} b5 {[%emt 0:06:18]} 23. Qd4 {[%emt 0:03:02]} bxa4 {[%emt 0:01:31]} 24. Ne4 {[%emt 0:00:25]} Ne6 {[%emt 0:00:43]} 0-1